[Event "Late-Titled-Tuesday-Blitz-June-04-2024"]
[Site "Chess.com"]
[Date "2024.06.04"]
[Round "10"]
[White "Rud_Makarian"]
[Black "Polish_fighter3000"]
[Result "0-1"]
[WhiteElo "2992"]
[BlackElo "3083"]
[TimeControl "180+1"]
[EndTime "15:55:26 PDT"]
[Termination "Polish_fighter3000 won on time"]

1. d4 {[%clk 0:02:58.8]} 1... g6 {[%clk 0:03:00.3]} 2. c4 {[%clk 0:02:58.5]}
2... Bg7 {[%clk 0:03:00.9]} 3. Nf3 {[%clk 0:02:59.2]} 3... d6 {[%clk 0:03:00.2]}
4. Nc3 {[%clk 0:02:59.3]} 4... c5 {[%clk 0:03:00.3]} 5. d5 {[%clk 0:02:50.4]}
5... Bxc3+ {[%clk 0:02:54]} 6. bxc3 {[%clk 0:02:51.3]} 6... Nf6 {[%clk
0:02:51.7]} 7. Nd2 {[%clk 0:02:44.3]} 7... e5 {[%clk 0:02:50.6]} 8. dxe6 {[%clk
0:02:39.8]} 8... Bxe6 {[%clk 0:02:50.2]} 9. g3 {[%clk 0:02:40.5]} 9... Qd7
{[%clk 0:02:44.5]} 10. Bg2 {[%clk 0:02:25.9]} 10... Bh3 {[%clk 0:02:43.5]} 11.
Ne4 {[%clk 0:02:13.7]} 11... Nxe4 {[%clk 0:02:38.5]} 12. Bxe4 {[%clk 0:02:14.6]}
12... Nc6 {[%clk 0:02:38.9]} 13. Rb1 {[%clk 0:02:06.7]} 13... O-O-O {[%clk
0:02:19.7]} 14. Bf4 {[%clk 0:01:46]} 14... Rhe8 {[%clk 0:02:15.2]} 15. f3 {[%clk
0:01:41.6]} 15... Rxe4 {[%clk 0:02:08]} 16. fxe4 {[%clk 0:01:39.5]} 16... Bg2
{[%clk 0:02:08.4]} 17. Rg1 {[%clk 0:01:30.3]} 17... Bxe4 {[%clk 0:02:08.7]} 18.
Rb2 {[%clk 0:01:24.5]} 18... Na5 {[%clk 0:02:09.1]} 19. Rb5 {[%clk 0:01:05.7]}
19... Nxc4 {[%clk 0:02:04.5]} 20. Qa4 {[%clk 0:00:35.7]} 20... Bc6 {[%clk
0:01:57.2]} 21. Rxc5 {[%clk 0:00:35.6]} 21... dxc5 {[%clk 0:01:56.2]} 22. Qxc4
{[%clk 0:00:36.4]} 22... Qe7 {[%clk 0:01:50.3]} 23. Kf2 {[%clk 0:00:34.4]} 23...
g5 {[%clk 0:01:50.4]} 24. Bc1 {[%clk 0:00:29.2]} 24... h5 {[%clk 0:01:39.9]} 25.
a4 {[%clk 0:00:22]} 25... Rd5 {[%clk 0:01:33.5]} 26. Rf1 {[%clk 0:00:17.8]}
26... Re5 {[%clk 0:01:32.6]} 27. Re1 {[%clk 0:00:13.4]} 27... a5 {[%clk
0:01:18.5]} 28. Kg1 {[%clk 0:00:10.7]} 28... Re4 {[%clk 0:01:10.2]} 29. Qd3
{[%clk 0:00:10.8]} 29... f6 {[%clk 0:01:10.3]} 30. c4 {[%clk 0:00:10.4]} 30...
Kc7 {[%clk 0:01:06.9]} 31. Bb2 {[%clk 0:00:10.4]} 31... Re6 {[%clk 0:00:49.9]}
32. Kf2 {[%clk 0:00:10.1]} 32... b6 {[%clk 0:00:44]} 33. Qf5 {[%clk 0:00:09.3]}
33... Be4 {[%clk 0:00:34.9]} 34. Qh3 {[%clk 0:00:09.1]} 34... Bd3 {[%clk
0:00:23.4]} 35. Qxh5 {[%clk 0:00:06.5]} 35... Bxc4 {[%clk 0:00:23.9]} 36. Qf3
{[%clk 0:00:06.6]} 36... f5 {[%clk 0:00:22.2]} 37. h4 {[%clk 0:00:03.3]} 37...
Re4 {[%clk 0:00:15.2]} 38. hxg5 {[%clk 0:00:03.3]} 38... Qxg5 {[%clk 0:00:15]}
39. Bc1 {[%clk 0:00:03.5]} 39... Qg4 {[%clk 0:00:14]} 40. Bf4+ {[%clk
0:00:03.8]} 40... Kb7 {[%clk 0:00:14.1]} 41. Qxg4 {[%clk 0:00:01.1]} 41... fxg4
{[%clk 0:00:14.3]} 42. e3 {[%clk 0:00:01.8]} 42... Bd5 {[%clk 0:00:12.6]} 43.
Rd1 {[%clk 0:00:01.4]} 43... Kc6 {[%clk 0:00:13.2]} 44. Ra1 {[%clk 0:00:01.9]}
44... Rc4 {[%clk 0:00:11.6]} 0-1

[Event "Late-Titled-Tuesday-Blitz-June-04-2024"]
[Site "Chess.com"]
[Date "2024.06.04"]
[Round "10"]
[White "LUISMIGUELOV"]
[Black "Heinza9"]
[Result "1-0"]
[WhiteElo "2228"]
[BlackElo "2319"]
[TimeControl "180+1"]
[EndTime "15:55:28 PDT"]
[Termination "LUISMIGUELOV won by checkmate"]

1. d4 {[%clk 0:03:00.9]} 1... e6 {[%clk 0:02:59.1]} 2. c3 {[%clk 0:03:00.4]}
2... f5 {[%clk 0:02:59.1]} 3. Bf4 {[%clk 0:02:59.9]} 3... Nf6 {[%clk 0:02:59]}
4. Nd2 {[%clk 0:03:00.2]} 4... b6 {[%clk 0:02:59]} 5. Qc2 {[%clk 0:02:59.8]}
5... Bb7 {[%clk 0:02:59.2]} 6. f3 {[%clk 0:02:59.8]} 6... Bd6 {[%clk 0:02:58]}
7. Bxd6 {[%clk 0:02:58.1]} 7... cxd6 {[%clk 0:02:58.9]} 8. e4 {[%clk 0:02:57.9]}
8... fxe4 {[%clk 0:02:57.7]} 9. Nxe4 {[%clk 0:02:57.1]} 9... O-O {[%clk
0:02:57.1]} 10. Nxf6+ {[%clk 0:02:53.5]} 10... Qxf6 {[%clk 0:02:56.5]} 11. O-O-O
{[%clk 0:02:50.9]} 11... Nc6 {[%clk 0:02:56]} 12. d5 {[%clk 0:02:40.5]} 12...
exd5 {[%clk 0:02:49.8]} 13. Bd3 {[%clk 0:02:36.3]} 13... g6 {[%clk 0:02:45.6]}
14. Kb1 {[%clk 0:02:35]} 14... Rac8 {[%clk 0:02:45.1]} 15. Ne2 {[%clk
0:02:32.7]} 15... Nb4 {[%clk 0:02:44.5]} 16. Qd2 {[%clk 0:02:24.1]} 16... Nxd3
{[%clk 0:02:40.2]} 17. Qxd3 {[%clk 0:02:24]} 17... Rce8 {[%clk 0:02:36]} 18.
Rhe1 {[%clk 0:02:22.2]} 18... Qf5 {[%clk 0:02:31.7]} 19. Qxf5 {[%clk 0:02:18.6]}
19... Rxf5 {[%clk 0:02:32.6]} 20. Nd4 {[%clk 0:02:18]} 20... Rfe5 {[%clk
0:02:32.4]} 21. Rf1 {[%clk 0:02:12.2]} 21... g5 {[%clk 0:02:23.7]} 22. h3 {[%clk
0:02:09.7]} 22... h5 {[%clk 0:02:22.1]} 23. Kc2 {[%clk 0:02:01.8]} 23... Kf7
{[%clk 0:02:19.7]} 24. f4 {[%clk 0:01:59.9]} 24... gxf4 {[%clk 0:02:18.7]} 25.
Rxf4+ {[%clk 0:01:59]} 25... Kg6 {[%clk 0:02:18.8]} 26. Rdf1 {[%clk 0:01:57.9]}
26... R8e7 {[%clk 0:02:12.3]} 27. g4 {[%clk 0:01:56.6]} 27... Ba6 {[%clk
0:02:09.9]} 28. R1f2 {[%clk 0:01:54.9]} 28... hxg4 {[%clk 0:02:07.9]} 29. Rxg4+
{[%clk 0:01:54.8]} 29... Rg5 {[%clk 0:02:05.9]} 30. Rgf4 {[%clk 0:01:49.6]}
30... Kh5 {[%clk 0:02:01.3]} 31. h4 {[%clk 0:01:45.4]} 31... Rge5 {[%clk
0:01:59.7]} 32. Rf6 {[%clk 0:01:35.3]} 32... Be2 {[%clk 0:01:39.3]} 33. Rxd6
{[%clk 0:01:32.8]} 33... Kxh4 {[%clk 0:01:39.2]} 34. Nf5+ {[%clk 0:01:18.2]}
34... Kg4 {[%clk 0:01:26.6]} 35. Nxe7 {[%clk 0:01:17.1]} 35... Rxe7 {[%clk
0:01:26]} 36. Rxd5 {[%clk 0:01:15.3]} 36... Kg3 {[%clk 0:01:25.8]} 37. Rf6
{[%clk 0:01:08.4]} 37... Bg4 {[%clk 0:01:22.2]} 38. Rg5 {[%clk 0:01:07]} 38...
Re2+ {[%clk 0:01:21.5]} 39. Kb3 {[%clk 0:01:06.2]} 39... Re4 {[%clk 0:01:18.4]}
40. Rfg6 {[%clk 0:01:02.1]} 40... Kh4 {[%clk 0:01:18]} 41. Rxg4+ {[%clk
0:01:00.8]} 41... Rxg4 {[%clk 0:01:17.9]} 42. Rxg4+ {[%clk 0:01:01.1]} 42...
Kxg4 {[%clk 0:01:18.8]} 43. Kc4 {[%clk 0:01:01.2]} 43... Kf5 {[%clk 0:01:19.4]}
44. Kd5 {[%clk 0:01:01.1]} 44... Kf4 {[%clk 0:01:19.3]} 45. Kd4 {[%clk
0:00:59.2]} 45... Kf5 {[%clk 0:01:15.1]} 46. Kd5 {[%clk 0:00:59.2]} 46... Kf4
{[%clk 0:01:15.6]} 47. Kd6 {[%clk 0:00:58.7]} 47... Ke4 {[%clk 0:01:15.7]} 48.
Kxd7 {[%clk 0:00:59]} 48... Kd5 {[%clk 0:01:16.1]} 49. Kc7 {[%clk 0:00:58.1]}
49... Kc5 {[%clk 0:01:15.9]} 50. Kb7 {[%clk 0:00:56.9]} 50... a5 {[%clk
0:01:16.2]} 51. Ka6 {[%clk 0:00:56.5]} 51... a4 {[%clk 0:01:15.9]} 52. b3 {[%clk
0:00:53.1]} 52... a3 {[%clk 0:01:14.9]} 53. b4+ {[%clk 0:00:42.9]} 53... Kc4
{[%clk 0:00:56.2]} 54. Kxb6 {[%clk 0:00:41.8]} 54... Kxc3 {[%clk 0:00:56.7]} 55.
Kc5 {[%clk 0:00:26.8]} 55... Kb2 {[%clk 0:00:56.3]} 56. b5 {[%clk 0:00:21.5]}
56... Kxa2 {[%clk 0:00:56.9]} 57. b6 {[%clk 0:00:22]} 57... Ka1 {[%clk
0:00:57.2]} 58. b7 {[%clk 0:00:22.3]} 58... a2 {[%clk 0:00:57]} 59. Kc4 {[%clk
0:00:20.8]} 59... Kb1 {[%clk 0:00:56.1]} 60. b8=Q+ {[%clk 0:00:20.2]} 60... Kc1
{[%clk 0:00:48.3]} 61. Qf4+ {[%clk 0:00:18]} 61... Kb2 {[%clk 0:00:46.6]} 62.
Qd2+ {[%clk 0:00:17.5]} 62... Kb1 {[%clk 0:00:46.2]} 63. Kb3 {[%clk 0:00:14.9]}
63... a1=N+ {[%clk 0:00:42.9]} 64. Ka3 {[%clk 0:00:13.2]} 64... Nc2+ {[%clk
0:00:41.4]} 65. Kb3 {[%clk 0:00:12]} 65... Na1+ {[%clk 0:00:41.7]} 66. Kc3
{[%clk 0:00:11.5]} 66... Nc2 {[%clk 0:00:35]} 67. Qxc2+ {[%clk 0:00:11.1]} 67...
Ka1 {[%clk 0:00:35.9]} 68. Qb2# {[%clk 0:00:11.3]} 1-0

[Event "Late-Titled-Tuesday-Blitz-June-04-2024"]
[Site "Chess.com"]
[Date "2024.06.04"]
[Round "10"]
[White "NovakRatko"]
[Black "Mikhal867"]
[Result "1-0"]
[WhiteElo "2311"]
[BlackElo "2468"]
[TimeControl "180+1"]
[EndTime "15:55:29 PDT"]
[Termination "NovakRatko won on time"]

1. d4 {[%clk 0:03:00.9]} 1... Nf6 {[%clk 0:02:57]} 2. c4 {[%clk 0:03:00.1]} 2...
g6 {[%clk 0:02:57.2]} 3. Nc3 {[%clk 0:02:59.8]} 3... Bg7 {[%clk 0:02:57.2]} 4.
e4 {[%clk 0:02:59.8]} 4... O-O {[%clk 0:02:57.2]} 5. f3 {[%clk 0:03:00.2]} 5...
d6 {[%clk 0:02:57.5]} 6. Be3 {[%clk 0:03:00.4]} 6... Nc6 {[%clk 0:02:58]} 7. Qd2
{[%clk 0:03:00]} 7... Re8 {[%clk 0:02:56.8]} 8. d5 {[%clk 0:02:59.8]} 8... Ne5
{[%clk 0:02:56.5]} 9. h3 {[%clk 0:02:58.8]} 9... e6 {[%clk 0:02:53.5]} 10. f4
{[%clk 0:02:55.3]} 10... Ned7 {[%clk 0:02:47.1]} 11. Bd3 {[%clk 0:02:35.6]}
11... exd5 {[%clk 0:02:41.6]} 12. cxd5 {[%clk 0:02:35.5]} 12... Nc5 {[%clk
0:02:37.3]} 13. Bxc5 {[%clk 0:02:35.5]} 13... dxc5 {[%clk 0:02:35.9]} 14. Nge2
{[%clk 0:02:35.8]} 14... c4 {[%clk 0:02:32.4]} 15. Bc2 {[%clk 0:02:32.9]} 15...
c6 {[%clk 0:02:29.5]} 16. dxc6 {[%clk 0:02:30.1]} 16... Qb6 {[%clk 0:02:20.5]}
17. e5 {[%clk 0:02:13.3]} 17... Nh5 {[%clk 0:02:13.1]} 18. g4 {[%clk 0:02:06]}
18... Nxf4 {[%clk 0:02:13]} 19. Qxf4 {[%clk 0:01:52.6]} 19... Bxe5 {[%clk
0:02:12.4]} 20. Qxc4 {[%clk 0:01:51.8]} 20... Bg3+ {[%clk 0:01:52.1]} 21. Kd1
{[%clk 0:01:51.3]} 21... Be6 {[%clk 0:01:50.4]} 22. Qb5 {[%clk 0:00:49.3]} 22...
Qe3 {[%clk 0:01:43.4]} 23. Bd3 {[%clk 0:00:49]} 23... bxc6 {[%clk 0:01:38.1]}
24. Qa6 {[%clk 0:00:47.3]} 24... Bc8 {[%clk 0:00:25.4]} 25. Qc4 {[%clk
0:00:39.6]} 25... a5 {[%clk 0:00:25.5]} 26. Kc2 {[%clk 0:00:17]} 26... Ba6
{[%clk 0:00:24.8]} 27. Qd4 {[%clk 0:00:17]} 27... Qxd4 {[%clk 0:00:20]} 28. Nxd4
{[%clk 0:00:17.9]} 28... Red8 {[%clk 0:00:19.2]} 29. Bxa6 {[%clk 0:00:17.6]}
29... Rxd4 {[%clk 0:00:16.1]} 30. Be2 {[%clk 0:00:17.3]} 30... Rb8 {[%clk
0:00:14.3]} 31. Rad1 {[%clk 0:00:17.3]} 31... Rdb4 {[%clk 0:00:14.2]} 32. Rb1
{[%clk 0:00:17.5]} 32... Be5 {[%clk 0:00:13.5]} 33. a3 {[%clk 0:00:17.4]} 33...
Rf4 {[%clk 0:00:12]} 34. Rhf1 {[%clk 0:00:17.1]} 34... f5 {[%clk 0:00:10.3]} 35.
Rxf4 {[%clk 0:00:16.8]} 35... Bxf4 {[%clk 0:00:10.1]} 36. gxf5 {[%clk
0:00:17.7]} 36... gxf5 {[%clk 0:00:09.6]} 37. Rf1 {[%clk 0:00:18.4]} 37... Bg5
{[%clk 0:00:07.8]} 38. Rxf5 {[%clk 0:00:18.6]} 38... h6 {[%clk 0:00:08.3]} 39.
Rxa5 {[%clk 0:00:17.8]} 39... Rd8 {[%clk 0:00:08.9]} 40. Bd3 {[%clk 0:00:16.5]}
40... Rf8 {[%clk 0:00:08.9]} 41. Ne4 {[%clk 0:00:13.7]} 41... Be3 {[%clk
0:00:07.4]} 42. Ra6 {[%clk 0:00:11.6]} 42... Rf3 {[%clk 0:00:06]} 43. Rxc6
{[%clk 0:00:10.9]} 43... Rxh3 {[%clk 0:00:06.3]} 44. a4 {[%clk 0:00:10.4]} 44...
Rh2+ {[%clk 0:00:06.1]} 45. Kc3 {[%clk 0:00:10.7]} 45... Rh1 {[%clk 0:00:04.8]}
46. b4 {[%clk 0:00:09.4]} 46... Ra1 {[%clk 0:00:02.5]} 47. Bc4+ {[%clk
0:00:09.2]} 47... Kf8 {[%clk 0:00:01.4]} 48. Kd3 {[%clk 0:00:10.1]} 48... Bg1
{[%clk 0:00:01]} 49. a5 {[%clk 0:00:10.5]} 49... Rd1+ {[%clk 0:00:01]} 50. Ke2
{[%clk 0:00:10.7]} 1-0

[Event "Late-Titled-Tuesday-Blitz-June-04-2024"]
[Site "Chess.com"]
[Date "2024.06.04"]
[Round "10"]
[White "gmcorrales"]
[Black "jefferyx"]
[Result "0-1"]
[WhiteElo "2881"]
[BlackElo "3086"]
[TimeControl "180+1"]
[EndTime "15:55:32 PDT"]
[Termination "jefferyx won by resignation"]

1. d4 {[%clk 0:02:58.4]} 1... d5 {[%clk 0:02:55.8]} 2. c4 {[%clk 0:02:59]} 2...
e6 {[%clk 0:02:55.9]} 3. Nf3 {[%clk 0:02:56.3]} 3... dxc4 {[%clk 0:02:56.1]} 4.
e3 {[%clk 0:02:55.8]} 4... Nf6 {[%clk 0:02:55.8]} 5. Bxc4 {[%clk 0:02:55.8]}
5... c5 {[%clk 0:02:56.3]} 6. O-O {[%clk 0:02:54.1]} 6... Nc6 {[%clk 0:02:57]}
7. dxc5 {[%clk 0:02:54.5]} 7... Qxd1 {[%clk 0:02:55.1]} 8. Rxd1 {[%clk
0:02:55.4]} 8... Bxc5 {[%clk 0:02:54.8]} 9. Nc3 {[%clk 0:02:55.5]} 9... O-O
{[%clk 0:02:53.7]} 10. a3 {[%clk 0:02:55.1]} 10... b6 {[%clk 0:02:25.5]} 11. b4
{[%clk 0:02:54.5]} 11... Be7 {[%clk 0:02:25.5]} 12. Bb2 {[%clk 0:02:54.5]} 12...
Bb7 {[%clk 0:02:24.1]} 13. Nb5 {[%clk 0:02:31.4]} 13... Rfd8 {[%clk 0:02:22.4]}
14. Ne5 {[%clk 0:02:24.1]} 14... Rdc8 {[%clk 0:01:38.4]} 15. Be2 {[%clk
0:02:06.4]} 15... a5 {[%clk 0:01:09.4]} 16. bxa5 {[%clk 0:01:40.1]} 16... Nxa5
{[%clk 0:01:04.5]} 17. Rac1 {[%clk 0:01:12.2]} 17... Kf8 {[%clk 0:00:47.3]} 18.
Bf3 {[%clk 0:01:04.4]} 18... Bxf3 {[%clk 0:00:46.9]} 19. gxf3 {[%clk 0:01:05.3]}
19... Nd5 {[%clk 0:00:33.5]} 20. e4 {[%clk 0:00:55.3]} 20... Nf4 {[%clk
0:00:27.9]} 21. Nd7+ {[%clk 0:00:52.7]} 21... Kg8 {[%clk 0:00:27.2]} 22. Rxc8+
{[%clk 0:00:43.1]} 22... Rxc8 {[%clk 0:00:28.1]} 23. Be5 {[%clk 0:00:42]} 23...
g5 {[%clk 0:00:26.8]} 24. a4 {[%clk 0:00:30.3]} 24... Nc4 {[%clk 0:00:25.4]} 25.
Bxf4 {[%clk 0:00:20.3]} 25... gxf4 {[%clk 0:00:26.3]} 26. Rc1 {[%clk 0:00:20.2]}
26... Rd8 {[%clk 0:00:26.7]} 27. Rxc4 {[%clk 0:00:19.4]} 27... Rxd7 {[%clk
0:00:27.3]} 28. Kg2 {[%clk 0:00:19.9]} 28... Rd2 {[%clk 0:00:27.2]} 29. e5
{[%clk 0:00:14.8]} 29... Bc5 {[%clk 0:00:21.8]} 30. Rxf4 {[%clk 0:00:14.4]}
30... Rxf2+ {[%clk 0:00:18.7]} 31. Kh3 {[%clk 0:00:14.8]} 31... Re2 {[%clk
0:00:17.3]} 32. Rg4+ {[%clk 0:00:15.1]} 32... Kf8 {[%clk 0:00:17.3]} 33. f4
{[%clk 0:00:16]} 33... Re4 {[%clk 0:00:11.5]} 34. Rh4 {[%clk 0:00:13.5]} 34...
Rxa4 {[%clk 0:00:11.4]} 35. Kg3 {[%clk 0:00:05.3]} 35... Ra5 {[%clk 0:00:07.4]}
36. Nd6 {[%clk 0:00:04.3]} 36... Bxd6 {[%clk 0:00:07.3]} 37. exd6 {[%clk
0:00:05.2]} 37... h5 {[%clk 0:00:06.6]} 38. f5 {[%clk 0:00:03.2]} 38... Rxf5
{[%clk 0:00:06.2]} 39. Rc4 {[%clk 0:00:03.3]} 39... Ke8 {[%clk 0:00:06.1]} 40.
Rc6 {[%clk 0:00:03.2]} 40... b5 {[%clk 0:00:05.8]} 41. Rb6 {[%clk 0:00:03]}
41... Kd7 {[%clk 0:00:05.9]} 42. Kh4 {[%clk 0:00:03.9]} 42... Rd5 {[%clk
0:00:04.9]} 43. Rb7+ {[%clk 0:00:03.6]} 43... Kxd6 {[%clk 0:00:05.4]} 44. Rxf7
{[%clk 0:00:03.8]} 44... b4 {[%clk 0:00:05.2]} 45. Rb7 {[%clk 0:00:04.1]} 45...
Kc5 {[%clk 0:00:05.5]} 46. h3 {[%clk 0:00:03.7]} 46... Kc4 {[%clk 0:00:05.8]}
47. Rb6 {[%clk 0:00:01.8]} 47... b3 {[%clk 0:00:05.3]} 48. Kg3 {[%clk
0:00:01.4]} 48... Rb5 {[%clk 0:00:04.8]} 49. Rc6+ {[%clk 0:00:02.1]} 49... Kd3
{[%clk 0:00:04.6]} 50. Rd6+ {[%clk 0:00:02.1]} 50... Kc2 {[%clk 0:00:04.7]} 51.
Rxe6 {[%clk 0:00:03]} 51... b2 {[%clk 0:00:05]} 52. Re2+ {[%clk 0:00:03.7]}
52... Kd1 {[%clk 0:00:05.2]} 53. Rh2 {[%clk 0:00:03.5]} 53... b1=Q {[%clk
0:00:05.4]} 54. Rh1+ {[%clk 0:00:04.4]} 54... Ke2 {[%clk 0:00:05.9]} 55. Rh2+
{[%clk 0:00:04.1]} 55... Ke3 {[%clk 0:00:06]} 56. Kh4 {[%clk 0:00:05]} 56...
Qe4+ {[%clk 0:00:04.9]} 0-1

[Event "Late-Titled-Tuesday-Blitz-June-04-2024"]
[Site "Chess.com"]
[Date "2024.06.04"]
[Round "10"]
[White "nabukatnezarr"]
[Black "howitzer14"]
[Result "0-1"]
[WhiteElo "2583"]
[BlackElo "3024"]
[TimeControl "180+1"]
[EndTime "15:55:38 PDT"]
[Termination "howitzer14 won by checkmate"]

1. b3 {[%clk 0:02:59.1]} 1... a5 {[%clk 0:02:50.8]} 2. Bb2 {[%clk 0:03:00]} 2...
a4 {[%clk 0:02:51.3]} 3. bxa4 {[%clk 0:02:57.7]} 3... d5 {[%clk 0:02:46.9]} 4.
Nf3 {[%clk 0:02:57.2]} 4... Nd7 {[%clk 0:02:29.2]} 5. e3 {[%clk 0:02:27.9]} 5...
Nc5 {[%clk 0:02:21]} 6. Nc3 {[%clk 0:02:28.8]} 6... Nf6 {[%clk 0:02:16.8]} 7. d4
{[%clk 0:02:18.2]} 7... Nce4 {[%clk 0:02:16.5]} 8. Nxe4 {[%clk 0:02:01.8]} 8...
Nxe4 {[%clk 0:02:12]} 9. Bd3 {[%clk 0:01:58]} 9... Bd7 {[%clk 0:02:00.6]} 10.
O-O {[%clk 0:01:58.4]} 10... Bxa4 {[%clk 0:01:59.3]} 11. Qe2 {[%clk 0:01:54.6]}
11... e6 {[%clk 0:01:57.1]} 12. c4 {[%clk 0:01:36.1]} 12... Be7 {[%clk
0:01:42.9]} 13. Rfc1 {[%clk 0:01:32.9]} 13... O-O {[%clk 0:01:42.5]} 14. Ne5
{[%clk 0:01:32.3]} 14... Bf6 {[%clk 0:01:28.2]} 15. f3 {[%clk 0:01:26.6]} 15...
Bxe5 {[%clk 0:01:14.3]} 16. dxe5 {[%clk 0:01:06]} 16... Nc5 {[%clk 0:01:11.5]}
17. cxd5 {[%clk 0:01:01.9]} 17... Nxd3 {[%clk 0:01:06.3]} 18. Qxd3 {[%clk
0:01:02.8]} 18... exd5 {[%clk 0:01:02]} 19. Qd4 {[%clk 0:00:55.7]} 19... Re8
{[%clk 0:00:54.2]} 20. Rc5 {[%clk 0:00:52.5]} 20... c6 {[%clk 0:00:51.6]} 21. a3
{[%clk 0:00:42.8]} 21... b6 {[%clk 0:00:44.7]} 22. Rcc1 {[%clk 0:00:40.4]} 22...
c5 {[%clk 0:00:44.9]} 23. Qg4 {[%clk 0:00:40.4]} 23... Qd7 {[%clk 0:00:39]} 24.
Qg3 {[%clk 0:00:40.3]} 24... Qe6 {[%clk 0:00:36]} 25. Rab1 {[%clk 0:00:37.4]}
25... Ra6 {[%clk 0:00:32.1]} 26. h3 {[%clk 0:00:37.5]} 26... h6 {[%clk 0:00:31]}
27. Re1 {[%clk 0:00:35.5]} 27... Bc2 {[%clk 0:00:23.2]} 28. Rbc1 {[%clk
0:00:35.3]} 28... Bg6 {[%clk 0:00:24.1]} 29. Red1 {[%clk 0:00:34]} 29... Ra4
{[%clk 0:00:22.1]} 30. Rd2 {[%clk 0:00:31.4]} 30... c4 {[%clk 0:00:15.3]} 31.
Rcd1 {[%clk 0:00:27]} 31... Bd3 {[%clk 0:00:15.4]} 32. Qf4 {[%clk 0:00:19]}
32... b5 {[%clk 0:00:13.3]} 33. Qd4 {[%clk 0:00:17.3]} 33... Rea8 {[%clk
0:00:13.5]} 34. Qc3 {[%clk 0:00:17.3]} 34... Qe7 {[%clk 0:00:11.7]} 35. Rxd3
{[%clk 0:00:15.2]} 35... cxd3 {[%clk 0:00:11]} 36. Rxd3 {[%clk 0:00:16.1]} 36...
Rc4 {[%clk 0:00:10.6]} 37. Qd2 {[%clk 0:00:15.5]} 37... Rd8 {[%clk 0:00:06.5]}
38. Rxd5 {[%clk 0:00:14.3]} 38... Rxd5 {[%clk 0:00:07.1]} 39. Qxd5 {[%clk
0:00:15.2]} 39... Qg5 {[%clk 0:00:03.3]} 40. Bd4 {[%clk 0:00:09.7]} 40... Qg3
{[%clk 0:00:03.2]} 41. Qa8+ {[%clk 0:00:06.6]} 41... Kh7 {[%clk 0:00:03]} 42.
Qe4+ {[%clk 0:00:07.1]} 42... g6 {[%clk 0:00:03.5]} 43. Qb1 {[%clk 0:00:06.7]}
43... Rc6 {[%clk 0:00:02.3]} 44. h4 {[%clk 0:00:04.2]} 44... h5 {[%clk
0:00:02.8]} 45. Kf1 {[%clk 0:00:03.5]} 45... Qxh4 {[%clk 0:00:02]} 46. Ke2
{[%clk 0:00:03.3]} 46... Qg3 {[%clk 0:00:02.1]} 47. Kd3 {[%clk 0:00:03.7]} 47...
Qxg2 {[%clk 0:00:02.1]} 48. Ke4 {[%clk 0:00:04.4]} 48... Re6 {[%clk 0:00:01.5]}
49. Qxb5 {[%clk 0:00:04.3]} 49... Qh3 {[%clk 0:00:02.2]} 50. f4 {[%clk
0:00:04.4]} 50... Qf5+ {[%clk 0:00:02.7]} 51. Kd5 {[%clk 0:00:04.8]} 51... Qg4
{[%clk 0:00:03.4]} 52. Qb8 {[%clk 0:00:04.7]} 52... Qg2+ {[%clk 0:00:03.3]} 53.
Kc5 {[%clk 0:00:04.5]} 53... Qc2+ {[%clk 0:00:03.5]} 54. Kd5 {[%clk 0:00:04.7]}
54... Qc6# {[%clk 0:00:04.4]} 0-1